bitfinex/quotes_SOLUSD_20220208
["timestamp","ask_amount","ask_price","bid_price","bid_amount"]
[1644362911387,1.24594545,114.25,114.21,32.0911]
[1644362911989,1.24594545,114.26,114.21,32.0911]
[1644362914590,14.37794545,114.26,114.21,26.0911]
[1644362914990,1.24594545,114.25,114.21,26.0911]
[1644362919698,1.24594545,114.25,114.21,23.5911]
[1644362920103,54.63581192,114.28,114.21,29.5911]
[1644362920104,1.24594545,114.26,114.21,29.5911]
[1644362920300,1.24594545,114.26,114.21,41.7051]
[1644362920497,47.7719,114.28,114.21,41.7051]
[1644362920498,1.24594545,114.27,114.21,41.7051]
[1644362920698,1.24594545,114.27,114.21,43.09638541]
[1644362920904,24.01924545,114.28,114.21,43.09638541]
[1644362921100,1.24594545,114.28,114.21,43.09638541]
[1644362921304,1.24594545,114.28,114.21,77.68435273]
[1644362921505,1.24594545,114.3,114.21,236.58435273]
[1644362921708,1.24594545,114.31,114.26,13.1215]
[1644362921902,1.24594545,114.32,114.27,12.71]
[1644362922099,1.24594545,114.33,114.27,20.10128541]
[1644362922299,1.24594545,114.33,114.27,20.35128541]
[1644362922501,1.24594545,114.33,114.27,18.96]
[1644362923800,1.24594545,114.33,114.28,13.1208]
[1644362924002,1.24594545,114.34,114.29,12.71]
[1644362924205,1.24594545,114.34,114.29,21.98]
[1644362924602,1.24594545,114.35,114.29,21.98]
[1644362924802,1.24594545,114.35,114.29,27.98]
[1644362925103,1.24594545,114.35,114.3,13.1206]
[1644362925601,29.4061,114.36,114.3,13.1206]
[1644362925602,30.65204545,114.36,114.3,13.1206]
[1644362926004,30.90204545,114.36,114.3,13.1206]
[1644362926202,44.02334545,114.36,114.3,13.1206]
[1644362926402,44.02334545,114.36,114.29,25.8326]
[1644362926603,5.61894545,114.35,114.29,25.8326]
[1644362926901,5.86894545,114.35,114.29,25.8326]
[1644362927504,18.99214545,114.35,114.29,12.71]
[1644362928506,24.99214545,114.35,114.29,12.71]
[1644362928904,20.61914545,114.35,114.29,12.71]
[1644362929504,4.373,114.34,114.29,12.71]
[1644362929704,13.1256,114.33,114.26,12.71]
[1644362930103,13.3756,114.33,114.26,12.71]
[1644362930504,4.374,114.32,114.26,12.71]
[1644362930804,13.1275,114.31,114.26,12.71]
[1644362931905,13.3775,114.31,114.24,12.71]
[1644362932106,13.1306,114.28,114.21,39.6155]
[1644362932312,13.3806,114.28,114.21,39.6155]
[1644362932606,13.3806,114.28,114.21,35.2415]
[1644362933305,13.3806,114.28,114.22,13.1306]
[1644362933519,13.3806,114.28,114.22,17.5066]
[1644362934410,13.3806,114.28,114.22,13.1306]
[1644362934607,13.3806,114.28,114.21,13.1318]
[1644362934831,13.3806,114.28,114.21,13.3818]
[1644362939515,13.1291,114.29,114.22,1.39658138]
[1644362939718,1.24594545,114.3,114.24,13.1269]
[1644362939916,47.92204545,114.32,114.25,4.375]
[1644362940116,46.6761,114.32,114.26,12.71]
[1644362940514,46.6761,114.32,114.26,18.71]
[1644362940714,61.04874545,114.32,114.26,12.71]
[1644362940914,59.8028,114.32,114.26,12.71]
[1644362941716,59.8028,114.32,114.26,40.4932]
[1644362941914,59.8028,114.32,114.26,34.4932]
[1644362942116,60.0528,114.32,114.26,34.2432]
[1644362942338,46.6761,114.32,114.26,40.2432]
[1644362942542,1.24594545,114.34,114.26,35.88978138]
[1644362942739,1.49594545,114.34,114.26,35.88978138]
[1644362942941,1.49594545,114.34,114.26,40.4932]
[1644362943142,1.49594545,114.34,114.26,34.2432]
[1644362943343,1.24594545,114.34,114.26,34.2432]
[1644362943542,1.24594545,114.34,114.26,34.4932]
[1644362943845,18.74434545,114.34,114.26,34.2432]
[1644362944044,1.24594545,114.33,114.26,40.2432]
[1644362944247,1.24594545,114.33,114.26,12.71]
[1644362944744,1.49594545,114.33,114.26,12.71]
[1644362945246,14.62214545,114.33,114.22,5.77058138]
[1644362945447,5.62094545,114.32,114.23,17.085]
[1644362945745,5.87094545,114.32,114.24,13.1285]
[1644362945946,5.62094545,114.32,114.24,13.1285]
[1644362946146,4.375,114.32,114.24,108.65508138]
[1644362946350,4.375,114.32,114.25,29.00743125]
[1644362946747,4.375,114.32,114.27,13.1243]
[1644362946945,4.375,114.32,114.27,25.8343]
[1644362947147,4.375,114.32,114.28,1.39658138]
[1644362947345,24.48664545,114.35,114.28,1.39658138]
[1644362947547,43.86014545,114.35,114.27,12.71]
[1644362947746,43.86014545,114.35,114.27,12.96]
[1644362947946,30.48664545,114.35,114.28,13.1238]
[1644362948248,30.48664545,114.35,114.28,13.3738]
[1644362948446,29.2407,114.35,114.28,13.3738]
[1644362948646,30.48664545,114.35,114.28,13.1238]
[1644362949253,30.48664545,114.35,114.28,13.3738]
[1644362949652,29.2407,114.35,114.28,13.3738]
[1644362950053,30.48664545,114.35,114.28,13.1238]
[1644362950454,30.48664545,114.35,114.28,13.3738]
[1644362950652,30.48664545,114.35,114.28,26.0838]
[1644362951151,30.48664545,114.35,114.28,25.8338]
[1644362951353,30.48664545,114.35,114.28,26.0838]
[1644362951951,43.61024545,114.35,114.28,25.8338]
[1644362952353,43.86024545,114.35,114.28,25.8338]
[1644362952752,1.24594545,114.34,114.28,25.8338]
[1644362953151,1.49594545,114.34,114.28,25.8338]
[1644362953352,14.62064545,114.34,114.28,12.71]
[1644362955755,18.99464545,114.34,114.28,12.71]
[1644362956153,18.74464545,114.34,114.28,12.71]
[1644362957653,18.99464545,114.34,114.28,12.71]
[1644362959656,18.93679901,114.34,114.28,12.71]
[1644362960455,14.56279901,114.34,114.28,12.71]
[1644362961354,14.56279901,114.34,114.27,13.125]
[1644362962157,13.3747,114.34,114.26,4.374]
[1644362962358,4.374,114.33,114.26,4.374]
[1644362962555,13.1297,114.31,114.26,4.374]
[1644362962755,13.1297,114.31,114.22,36.7385]
[1644362962958,22.8524,114.3,114.22,36.7385]
[1644362963156,22.8524,114.3,114.22,41.1135]
[1644362963357,23.1024,114.3,114.22,41.1135]
[1644362963557,23.1024,114.3,114.22,41.3635]
[1644362964156,36.2319,114.3,114.22,30.2156]
[1644362964360,36.2319,114.3,114.18,31.98584987]
[1644362964557,36.2319,114.3,114.18,23.085]
[1644362964855,38.33965549,114.3,114.18,23.085]
[1644362965059,4.376,114.29,114.18,18.71]
[1644362965260,4.626,114.29,114.18,18.71]
[1644362965460,6.73375549,114.29,114.18,18.71]
[1644362965859,24.3391,114.28,114.18,18.71]
[1644362966064,17.5097,114.27,114.19,13.134]
[1644362966360,13.1327,114.27,114.19,13.134]
[1644362966560,24.3391,114.28,114.19,19.134]
[1644362966760,24.3391,114.28,114.19,20.53206649]
[1644362966962,24.3391,114.28,114.2,17.086]
[1644362967162,24.3391,114.28,114.2,23.086]
[1644362967361,37.4707,114.28,114.21,13.131]
[1644362967563,37.4707,114.28,114.21,19.131]
[1644362967763,37.4707,114.28,114.2,12.71]
[1644362968765,37.7207,114.28,114.2,12.71]
[1644362969964,42.0967,114.28,114.2,12.71]
[1644362971064,37.4707,114.28,114.2,25.8428]
[1644362971266,24.3391,114.28,114.2,33.49086649]
[1644362972468,24.3391,114.28,114.2,37.86686649]
[1644362972667,24.3391,114.28,114.2,32.0928]
[1644362972968,24.3391,114.28,114.2,26.0928]
[1644362973171,24.5891,114.28,114.2,26.0928]
[1644362973367,24.3391,114.28,114.2,26.0928]
[1644362973567,24.5891,114.28,114.2,26.0928]
[1644362973769,37.7204,114.28,114.21,17.5069]
[1644362973968,37.7204,114.28,114.21,25.8409]
[1644362975676,37.4704,114.28,114.21,25.8409]
[1644362975872,37.4704,114.28,114.21,26.0909]
[1644362976099,24.3391,114.28,114.21,26.0909]
[1644362977680,24.5891,114.28,114.21,26.0909]
[1644362978281,37.7204,114.28,114.21,26.0909]
[1644362978482,37.7204,114.28,114.22,4.376]
[1644362978681,37.7204,114.28,114.22,4.626]
[1644362979282,4.376,114.31,114.23,12.71]
[1644362979483,48.5063,114.32,114.24,4.375]
[1644362979686,24.2331,114.35,114.25,12.71]
[1644362979885,51.78917471,114.37,114.26,4.374]
[1644362980084,47.41517471,114.37,114.27,12.71]
[1644362980286,53.41517471,114.37,114.27,12.71]
[1644362980483,52.41517471,114.37,114.27,12.71]
[1644362981087,52.41517471,114.37,114.27,12.96]
[1644362981287,52.66517471,114.37,114.27,12.96]
[1644362981486,4.373,114.36,114.27,12.96]
[1644362981686,65.53837471,114.37,114.28,13.1236]
[1644362982086,65.53837471,114.37,114.28,13.3736]
[1644362983090,17.4967,114.36,114.28,26.0836]
[1644362983289,13.3737,114.36,114.28,26.0836]
[1644362983701,4.373,114.38,114.28,27.48259374]
[1644362983902,29.2227,114.4,114.28,27.48259374]
[1644362984102,29.2227,114.4,114.29,4.373]
[1644362984303,29.2227,114.4,114.31,13.119]
[1644362984704,29.2227,114.4,114.31,19.119]
[1644362984905,29.2227,114.4,114.3,12.71]
[1644362985104,24.8497,114.4,114.3,18.96]
[1644362985305,24.8497,114.4,114.3,12.71]
[1644362985502,37.9697,114.4,114.3,25.8309]
[1644362986302,4.372,114.39,114.3,26.0809]
[1644362986703,4.372,114.39,114.3,25.8309]
[1644362986904,23.8946,114.38,114.3,25.8309]
[1644362987105,29.8946,114.38,114.3,25.8309]
[1644362987305,30.1446,114.38,114.3,25.8309]
[1644362988407,29.8946,114.38,114.3,12.71]
[1644362988606,6.0,114.38,114.3,20.35899374]
[1644362989007,28.3834,114.4,114.3,18.96]
[1644362989207,24.0114,114.4,114.31,4.372]
[1644362989406,30.0114,114.4,114.31,17.4907]
[1644362989606,30.0114,114.4,114.31,17.7407]
[1644362989806,30.2614,114.4,114.31,17.7407]
[1644362990009,30.2614,114.4,114.31,13.3687]
[1644362990705,43.3807,114.4,114.31,13.3687]
[1644362991508,43.3807,114.4,114.31,31.0987]
[1644362991708,43.3807,114.4,114.32,1.39899374]
[1644362992109,43.3807,114.4,114.32,6.0]
[1644362992813,43.3807,114.4,114.31,19.3687]
[1644362993213,43.3807,114.4,114.31,13.3687]
[1644362993910,43.3807,114.4,114.31,26.0787]
[1644362994110,4.372,114.39,114.31,12.96]
[1644362994310,13.1217,114.37,114.31,12.71]
[1644362994712,13.3717,114.37,114.31,12.71]
[1644362995311,13.3717,114.37,114.31,18.71]
[1644362995914,0.25,114.37,114.31,12.71]
[1644362996213,24.0114,114.4,114.31,12.96]
[1644362996413,24.0114,114.4,114.32,1.39899374]
[1644362996615,24.0114,114.4,114.32,20.10899374]
[1644362996812,24.0114,114.4,114.32,20.35899374]
[1644362997617,24.0114,114.4,114.33,13.1166]
[1644362997815,24.2614,114.4,114.33,13.1166]
[1644362998013,30.2614,114.4,114.33,13.1166]
[1644362998214,43.3795,114.4,114.32,17.082]
[1644362999016,43.3795,114.4,114.32,4.372]
[1644362999215,13.1217,114.37,114.3,12.71]
[1644362999615,13.3717,114.37,114.3,12.71]
[1644363001318,0.25,114.37,114.3,12.71]
[1644363001516,0.25,114.37,114.3,20.10899374]
[1644363001715,38.0558,114.38,114.3,20.35899374]
[1644363001916,38.0558,114.38,114.3,18.96]
[1644363002117,38.0558,114.38,114.3,12.96]
[1644363002420,38.0558,114.38,114.3,33.7559]
[1644363002919,38.0558,114.38,114.31,5.77099374]
[1644363003120,24.6856,114.38,114.31,17.082]
[1644363003316,24.6856,114.38,114.32,1.39899374]
[1644363003818,24.9356,114.38,114.31,17.332]
[1644363004016,24.9356,114.38,114.31,12.96]
[1644363004219,4.372,114.39,114.32,4.372]
[1644363004420,4.372,114.39,114.32,13.502]
[1644363004619,4.372,114.39,114.34,13.1136]
[1644363004820,4.372,114.39,114.35,12.71]
[1644363005020,4.372,114.39,114.35,21.113]
[1644363005222,4.371,114.45,114.35,27.363]
[1644363005424,2.48691192,114.46,114.36,1.39899374]
[1644363005623,15.59781192,114.47,114.37,17.08]
[1644363005820,15.59781192,114.47,114.39,13.1098]
[1644363006022,13.1109,114.47,114.39,24.7128]
[1644363006219,13.1109,114.47,114.39,24.9628]
[1644363006220,17.4799,114.47,114.39,24.9628]
[1644363006621,17.4799,114.47,114.39,11.603]
[1644363006820,13.3609,114.47,114.39,11.603]
[1644363007022,4.369,114.46,114.39,11.603]
[1644363007221,13.1107,114.46,114.39,24.7137]
[1644363007421,13.1107,114.46,114.39,11.603]
[1644363007621,13.1107,114.46,114.37,17.08]
[1644363007823,43.7726,114.46,114.37,17.08]
[1644363008223,46.25951192,114.46,114.37,17.08]
[1644363008421,13.1132,114.44,114.37,25.823]
[1644363010628,13.1118,114.45,114.37,26.073]
[1644363010825,13.1118,114.45,114.37,36.32338105]
[1644363011023,13.1118,114.45,114.37,36.07338105]
[1644363011225,13.1118,114.45,114.37,34.671]
[1644363012127,13.3618,114.45,114.37,34.671]
[1644363012726,13.3618,114.45,114.37,25.823]
[1644363012928,13.1129,114.44,114.37,34.94]
[1644363013134,2.48691192,114.48,114.39,13.1099]
[1644363013327,2.48691192,114.48,114.4,4.369]
[1644363013526,2.48691192,114.49,114.4,27.324]
[1644363013726,2.48691192,114.5,114.4,34.97638105]
[1644363013926,26.03171192,114.5,114.4,34.97638105]
[1644363014126,4.368,114.49,114.4,33.574]
[1644363014326,17.4755,114.49,114.4,46.6826]
[1644363014527,17.4755,114.49,114.4,42.0636]
[1644363015329,17.4755,114.49,114.4,42.3136]
[1644363015733,13.1075,114.49,114.4,42.3136]
[1644363016732,13.3575,114.49,114.4,42.3136]
[1644363017135,17.7255,114.49,114.4,42.0636]
[1644363017355,23.7255,114.49,114.4,22.955]
[1644363017532,13.111,114.46,114.4,22.955]
[1644363017732,13.361,114.46,114.4,12.71]
[1644363020438,4.369,114.48,114.4,12.96]
[1644363020638,13.109,114.47,114.41,1.40238105]
[1644363020839,13.109,114.47,114.41,1.65238105]
[1644363021039,13.109,114.47,114.41,7.65238105]
[1644363021237,13.109,114.47,114.41,7.40238105]
[1644363021437,13.109,114.47,114.4,12.71]
[1644363021837,13.359,114.47,114.4,12.71]
[1644363022238,17.728,114.47,114.4,12.71]
[1644363022641,42.5856,114.47,114.4,12.71]
[1644363023243,42.3356,114.47,114.4,12.71]
[1644363023444,37.9666,114.47,114.41,1.40237982]
[1644363023642,24.8576,114.47,114.41,10.77637982]
[1644363023846,24.8576,114.47,114.41,15.374]
[1644363024242,24.8576,114.47,114.41,9.374]
[1644363024645,24.8576,114.47,114.4,25.8194]
[1644363024885,24.8576,114.47,114.4,12.71]
[1644363024886,38.2165,114.47,114.4,12.71]
[1644363025770,37.9665,114.47,114.4,12.96]
[1644363027571,37.9665,114.47,114.4,12.71]
[1644363027772,37.9665,114.47,114.4,25.8196]
[1644363027973,38.2165,114.47,114.4,25.8196]
[1644363028577,38.2165,114.47,114.4,12.71]
[1644363029176,38.2165,114.47,114.4,25.8195]
[1644363030080,38.2165,114.47,114.4,12.71]
[1644363030778,38.2165,114.47,114.38,46.1179]
[1644363030980,13.1128,114.44,114.38,58.8279]
[1644363031284,13.1128,114.44,114.35,56.415]
[1644363031479,22.7919,114.43,114.35,56.415]
[1644363031779,22.7919,114.43,114.36,23.251]
[1644363032278,22.7919,114.43,114.36,23.501]
[1644363032680,35.9053,114.43,114.36,38.02206763]
[1644363033080,35.9053,114.43,114.37,4.37]
[1644363033280,35.9053,114.43,114.37,4.62]
[1644363033481,35.9053,114.43,114.37,4.37]
[1644363033680,22.7919,114.43,114.37,17.7321]
[1644363033884,6.85791192,114.47,114.37,30.4421]
[1644363034082,22.9774,114.46,114.38,1.40766763]
[1644363034285,29.12277067,114.58,114.41,4.0]
[1644363034483,0.6160043,114.7,114.6,1.40766763]
[1644363034684,4.96593764,114.7,114.65,0.30237368]
[1644363034882,2.47683343,114.72,114.66,12.71]
[1644363035088,4.95366686,114.77,114.71,158.9]
[1644363035285,4.95366686,114.77,114.75,158.9]
[1644363035482,4.95366686,114.77,114.76,0.46039818]
[1644363035483,0.00847938,114.77,114.76,0.46039818]
[1644363035685,217.87815488,114.78,114.76,172.07039818]
[1644363035885,217.87815488,114.78,114.77,158.9]
[1644363036111,217.87815488,114.78,114.77,177.61]
[1644363036283,217.87815488,114.78,114.77,177.86]
[1644363036685,217.87815488,114.78,114.77,171.86]
[1644363036886,89.44455488,114.78,114.77,171.86]
[1644363037084,3.995,114.93,114.77,177.86]
[1644363037287,3.995,114.93,114.8,158.9]
[1644363037485,3.995,114.93,114.81,12.71]
[1644363037885,6.10275549,114.93,114.81,12.71]
[1644363038587,12.10275549,114.93,114.77,158.9]
[1644363038793,11.10275549,114.93,114.78,12.71]
[1644363038990,30.54158245,114.92,114.75,12.71]
[1644363039287,2.10775549,114.91,114.75,12.71]
[1644363039487,13.0683,114.9,114.75,12.96]
[1644363039895,2.10775549,114.89,114.75,12.71]
[1644363040686,2.35775549,114.89,114.75,12.71]
[1644363041087,2.10775549,114.88,114.75,12.71]
[1644363042089,8.10775549,114.88,114.75,12.71]
[1644363042288,8.10775549,114.88,114.76,10.46]
[1644363042489,6.0,114.88,114.76,10.46]
[1644363042691,16.0603,114.93,114.76,16.71]
[1644363042889,6.0,114.88,114.76,21.063]
[1644363043088,18.16805549,114.93,114.76,10.71]
[1644363043488,18.16805549,114.93,114.76,10.46]
[1644363043890,10.46,114.92,114.76,10.46]
[1644363044091,13.0685,114.9,114.76,10.46]
[1644363044496,21.17625549,114.9,114.76,10.46]
[1644363045093,19.0685,114.9,114.76,10.46]
[1644363046293,31.94714374,114.9,114.72,4.354]
[1644363046493,31.94714374,114.9,114.74,10.46]
[1644363046693,29.5285,114.9,114.73,10.46]
[1644363046897,29.5285,114.9,114.75,10.46]
[1644363047095,2.10775549,114.89,114.75,10.46]
[1644363047294,13.0722,114.86,114.75,10.46]
[1644363047992,13.0722,114.86,114.71,10.46]
[1644363047993,21.17995549,114.86,114.71,10.46]
[1644363048194,30.45423351,114.86,114.72,4.355]
[1644363048495,43.021989,114.86,114.72,14.815]
[1644363048695,43.021989,114.86,114.72,4.355]
[1644363048896,43.021989,114.86,114.66,4.355]
[1644363049099,13.0783,114.8,114.67,10.46]
[1644363049298,13.0783,114.8,114.66,14.815]
[1644363049500,13.02054961,114.8,114.66,14.815]
[1644363051219,11.13203351,114.82,114.67,1.40881838]
[1644363051520,11.13203351,114.82,114.68,14.817]
[1644363051918,21.59203351,114.82,114.68,10.46]
[1644363052122,21.59203351,114.82,114.65,4.357]
[1644363052318,13.0782,114.8,114.65,15.067]
[1644363052520,23.5382,114.8,114.65,14.817]
[1644363053120,34.67023351,114.8,114.64,4.358]
[1644363053322,34.67023351,114.8,114.6,4.358]
[1644363053524,13.086,114.73,114.58,4.359]
[1644363053821,10.46,114.72,114.57,4.36]
[1644363054320,10.46,114.72,114.57,14.82]
[1644363054723,10.46,114.72,114.57,27.9046]
[1644363054921,28.961,114.72,114.57,27.9046]
[1644363055221,29.211,114.72,114.57,27.9046]
[1644363056323,13.0876,114.71,114.57,14.82]
[1644363056523,13.0876,114.71,114.54,17.4486]
[1644363056723,10.46,114.7,114.54,17.4486]
[1644363056922,12.56775549,114.7,114.54,17.4486]
[1644363057724,13.0901,114.69,114.54,17.4486]
[1644363057925,10.46,114.68,114.54,17.4486]
[1644363058526,12.56775549,114.68,114.54,4.361]
[1644363058825,24.5345,114.74,114.59,0.741748]
[1644363059028,24.5345,114.74,114.61,0.44]
[1644363059225,24.5345,114.74,114.62,10.46]
[1644363059625,24.5345,114.74,114.62,18.11881838]
[1644363059830,24.5345,114.74,114.63,1.40881838]
[1644363060028,24.5345,114.74,114.63,11.86881838]
[1644363060225,24.7845,114.74,114.63,12.11881838]
[1644363060428,35.2445,114.74,114.6,4.36]
[1644363060626,21.16207745,114.73,114.56,4.36]
[1644363060826,23.26983294,114.73,114.53,10.46]
[1644363061029,90.22215549,114.72,114.54,4.361]
[1644363061327,88.1144,114.72,114.56,13.0856]
[1644363061526,88.1144,114.72,114.57,14.821]
[1644363061925,2.10775549,114.71,114.57,14.821]
[1644363062126,12.56775549,114.71,114.57,14.821]
[1644363062325,32.26316627,114.71,114.57,4.361]
[1644363062531,2.10775549,114.7,114.57,4.361]
[1644363062928,26.88213979,114.69,114.57,4.361]
[1644363063134,10.46,114.69,114.57,4.361]
[1644363063730,13.0902,114.68,114.57,4.361]
[1644363063929,23.5502,114.68,114.53,10.46]
[1644363064131,29.8002,114.68,114.51,13.0914]
[1644363064330,29.8002,114.68,114.51,24.96021838]
[1644363064731,29.8002,114.68,114.51,25.21021838]
[1644363064932,2.10775549,114.67,114.51,23.8014]
[1644363065140,23.552,114.66,114.51,27.9144]
[1644363065336,23.552,114.66,114.49,11.86881838]
[1644363065534,23.552,114.66,114.5,4.363]
[1644363065833,23.552,114.66,114.49,4.363]
[1644363065834,2.10775549,114.65,114.49,4.363]
[1644363066034,10.46,114.64,114.49,4.363]
[1644363066232,23.5544,114.64,114.5,1.40881838]
[1644363066433,23.5544,114.64,114.51,4.364]
[1644363066632,23.5544,114.64,114.49,10.46]
[1644363066833,10.46,114.64,114.5,13.0939]
[1644363067033,10.46,114.64,114.51,11.86881838]
[1644363067235,10.46,114.64,114.51,124.36881838]
[1644363068238,10.46,114.67,114.52,101.2218]
[1644363068438,101.2152,114.68,114.53,14.823]
[1644363068636,101.2152,114.68,114.53,22.23181838]
[1644363068839,101.2152,114.68,114.54,1.40881838]
[1644363069138,10.46,114.67,114.54,1.40881838]
[1644363069437,10.46,114.67,114.52,13.0919]
[1644363069640,10.46,114.67,114.53,4.613]
[1644363069938,10.71,114.67,114.53,4.613]
[1644363070139,10.46,114.67,114.53,4.613]
[1644363070343,10.46,114.67,114.53,6.02181838]
[1644363070541,10.46,114.67,114.55,13.0884]
[1644363070741,10.46,114.67,114.56,4.362]
[1644363071141,10.46,114.67,114.56,4.612]
[1644363071642,107.2152,114.68,114.56,4.612]
[1644363071842,101.2152,114.68,114.57,99.99881838]
[1644363072042,101.2152,114.68,114.57,105.99881838]
[1644363072244,101.2152,114.68,114.58,1.40881838]
[1644363072442,101.2152,114.68,114.59,10.46]
[1644363072947,101.2152,114.68,114.57,10.46]
[1644363073143,101.2152,114.68,114.55,54.0766]
[1644363073343,101.2152,114.68,114.55,54.3266]
[1644363073543,107.2152,114.68,114.55,60.3266]
[1644363073743,107.4652,114.68,114.55,60.3266]
[1644363074143,101.4652,114.68,114.55,60.3266]
[1644363074544,101.4652,114.68,114.56,4.362]
[1644363074745,101.4652,114.68,114.56,17.6994]
[1644363074945,107.4652,114.68,114.56,19.3374]
[1644363075145,107.4652,114.68,114.56,13.3374]
[1644363075346,10.46,114.67,114.56,13.3374]
[1644363075746,10.46,114.67,114.54,13.0899]
[1644363077051,23.5504,114.67,114.54,19.0899]
[1644363077246,107.2152,114.68,114.54,19.0899]
[1644363077446,101.2152,114.68,114.54,29.7999]
[1644363077646,101.2152,114.68,114.54,117.9299]
[1644363078946,101.2152,114.68,114.55,4.362]
[1644363079146,101.2152,114.68,114.55,14.822]
[1644363079347,101.4652,114.68,114.57,13.0872]
[1644363079847,101.4652,114.68,114.57,13.3372]
[1644363080248,101.2152,114.68,114.57,13.3372]
[1644363081050,101.2152,114.68,114.57,23.7972]
[1644363081251,102.45106921,114.68,114.57,23.5472]
[1644363081451,102.45106921,114.68,114.57,13.0872]
[1644363081652,1.23586921,114.67,114.57,13.0872]
[1644363082052,115.53946921,114.68,114.57,13.0872]
[1644363082351,1.23586921,114.67,114.57,13.3372]
[1644363082553,115.53946921,114.68,114.57,13.3372]
[1644363082755,1.23586921,114.67,114.57,13.3372]
[1644363083652,1.48586921,114.67,114.57,13.3372]
[1644363083854,1.48586921,114.67,114.57,17.6992]
[1644363084967,1.23586921,114.67,114.57,17.6992]
[1644363085168,102.45106921,114.68,114.57,17.6992]
[1644363085369,101.2152,114.68,114.57,28.1592]
[1644363085568,102.45106921,114.68,114.57,23.7972]
[1644363085970,102.45106921,114.68,114.57,29.7972]
[1644363086174,24.44346921,114.68,114.57,23.7972]
[1644363086372,1.23586921,114.69,114.58,88.13]
[1644363086671,1.23586921,114.69,114.61,13.0824]
[1644363086871,1.23586921,114.69,114.61,27.0124]
[1644363087072,1.23586921,114.69,114.61,22.6514]
[1644363088073,1.48586921,114.69,114.61,22.6514]
[1644363088274,1.23586921,114.69,114.61,13.0824]
[1644363088472,1.23586921,114.69,114.59,23.5454]
[1644363088671,1.23586921,114.69,114.59,19.0854]
[1644363088874,1.23586921,114.68,114.59,19.0854]
[1644363089071,1.23586921,114.68,114.59,13.0854]
[1644363089475,14.32296921,114.68,114.59,13.0854]
[1644363089671,1.23586921,114.67,114.59,13.0854]
[1644363091173,1.23586921,114.68,114.59,13.3354]
[1644363091374,1.23586921,114.68,114.59,13.0854]
[1644363091572,1.23586921,114.67,114.59,13.0854]
[1644363091775,1.23586921,114.66,114.59,13.0854]
[1644363091974,1.23586921,114.67,114.59,13.0854]
[1644363092473,1.23586921,114.66,114.59,13.0854]
[1644363092875,1.23586921,114.67,114.59,13.0854]
[1644363093077,1.23586921,114.66,114.59,13.0854]
[1644363093276,1.23586921,114.67,114.59,13.0854]
[1644363094777,1.23586921,114.66,114.59,13.0854]
[1644363094977,1.48586921,114.67,114.59,13.0854]
[1644363095380,1.23586921,114.66,114.59,13.0854]
[1644363096382,1.48586921,114.66,114.59,13.0854]
[1644363096582,1.23586921,114.66,114.59,13.0854]
[1644363096783,1.23586921,114.67,114.59,13.0854]
[1644363097183,1.23586921,114.67,114.6,4.361]
[1644363097382,1.23586921,114.67,114.6,13.0853]
[1644363097584,1.23586921,114.68,114.6,13.3353]
[1644363098184,1.23586921,114.68,114.6,13.0853]
[1644363098985,14.57126921,114.68,114.6,13.0853]
[1644363099783,1.23586921,114.67,114.6,13.0853]
[1644363100585,7.23586921,114.67,114.6,13.0853]
[1644363101183,1.23586921,114.67,114.6,13.0853]
[1644363101386,14.32236921,114.67,114.6,13.0853]